[Event "Titled Tuesday Blitz May 30 Early 2023"]
[White "Estrada Nieto, Julian"]
[Black "Belov, Alexei"]
[WhiteFideId "5101018"]
[BlackFideId "4128206"]
[WhiteElo "2161"]
[BlackElo "2551"]
[Result "1-0"]
[Round "07"]
[TimeControl "180+2"]
[Date "2023.05.30"]
[WhiteClock "0:00:16"]
[BlackClock "0:00:04"]

1. e4 {[%clk 0:03:00]}  e6 {[%clk 0:02:59]} 2. d4 {[%clk 0:03:00]}  d5 {[%clk 0:03:00]} 3. Nd2 {[%clk 0:03:00]}  Nf6 {[%clk 0:03:00]} 4. e5 {[%clk 0:03:00]}  Nfd7 {[%clk 0:03:00]} 5. Bd3 {[%clk 0:03:01]}  c5 {[%clk 0:03:01]} 6. c3 {[%clk 0:03:01]}  Nc6 {[%clk 0:03:01]} 7. Ne2 {[%clk 0:03:01]}  f6 {[%clk 0:03:02]} 8. exf6 {[%clk 0:03:01]}  Nxf6 {[%clk 0:03:02]} 9. Nf3 {[%clk 0:03:02]}  Bd6 {[%clk 0:03:02]} 10. O-O {[%clk 0:03:01]}  Qc7 {[%clk 0:03:02]} 11. Bg5 {[%clk 0:02:59]}  O-O {[%clk 0:03:02]} 12. Bh4 {[%clk 0:02:58]}  Bd7 {[%clk 0:03:02]} 13. Bg3 {[%clk 0:02:58]}  b6 {[%clk 0:03:02]} 14. Re1 {[%clk 0:02:35]}  Rae8 {[%clk 0:03:02]} 15. Bxd6 {[%clk 0:02:34]}  Qxd6 {[%clk 0:03:01]} 16. Ng3 {[%clk 0:02:35]}  e5 {[%clk 0:02:58]} 17. dxe5 {[%clk 0:02:35]}  Nxe5 {[%clk 0:02:59]} 18. Nxe5 {[%clk 0:02:32]}  Rxe5 {[%clk 0:02:59]} 19. Qd2 {[%clk 0:02:29]}  Rfe8 {[%clk 0:02:31]} 20. Rxe5 {[%clk 0:02:29]}  Qxe5 {[%clk 0:02:32]} 21. h3 {[%clk 0:02:20]}  d4 {[%clk 0:02:15]} 22. Bc4+ {[%clk 0:02:20]}  Kh8 {[%clk 0:01:48]} 23. cxd4 {[%clk 0:02:19]}  cxd4 {[%clk 0:01:47]} 24. Rd1 {[%clk 0:02:18]}  Bc6 {[%clk 0:01:25]} 25. Qxd4 {[%clk 0:02:13]}  Qg5 {[%clk 0:01:21]} 26. Qd6 {[%clk 0:01:49]}  Ba8 {[%clk 0:00:49]} 27. Bf7 {[%clk 0:01:43]}  Ne4 {[%clk 0:00:45]} 28. Nxe4 {[%clk 0:01:14]}  Bxe4 {[%clk 0:00:43]} 29. Qg3 {[%clk 0:01:11]}  Qxg3 {[%clk 0:00:38]} 30. fxg3 {[%clk 0:01:11]}  Rc8 {[%clk 0:00:32]} 31. Re1 {[%clk 0:01:02]}  Bg6 {[%clk 0:00:25]} 32. Bxg6 {[%clk 0:00:55]}  hxg6 {[%clk 0:00:25]} 33. Re7 {[%clk 0:00:56]}  Rc2 {[%clk 0:00:25]} 34. Rxa7 {[%clk 0:00:53]}  Rxb2 {[%clk 0:00:25]} 35. g4 {[%clk 0:00:52]}  g5 {[%clk 0:00:22]} 36. Kh2 {[%clk 0:00:52]}  Kh7 {[%clk 0:00:22]} 37. Kg3 {[%clk 0:00:51]}  Kh6 {[%clk 0:00:21]} 38. Ra8 {[%clk 0:00:50]}  b5 {[%clk 0:00:21]} 39. Ra5 {[%clk 0:00:41]}  b4 {[%clk 0:00:20]} 40. Rb5 {[%clk 0:00:38]}  Rxa2 {[%clk 0:00:19]} 41. Rxb4 {[%clk 0:00:38]}  Ra3+ {[%clk 0:00:19]} 42. Kh2 {[%clk 0:00:38]}  g6 {[%clk 0:00:20]} 43. Re4 {[%clk 0:00:37]}  Rb3 {[%clk 0:00:20]} 44. Re1 {[%clk 0:00:37]}  Ra3 {[%clk 0:00:21]} 45. Rf1 {[%clk 0:00:37]}  Rb3 {[%clk 0:00:21]} 46. Rf3 {[%clk 0:00:38]}  Rb2 {[%clk 0:00:21]} 47. Kg3 {[%clk 0:00:38]}  Ra2 {[%clk 0:00:21]} 48. Rf7 {[%clk 0:00:37]}  Ra3+ {[%clk 0:00:22]} 49. Rf3 {[%clk 0:00:36]}  Ra2 {[%clk 0:00:22]} 50. Rf2 {[%clk 0:00:34]}  Ra3+ {[%clk 0:00:22]} 51. Kh2 {[%clk 0:00:35]}  Ra1 {[%clk 0:00:22]} 52. g3 {[%clk 0:00:33]}  Ra3 {[%clk 0:00:22]} 53. Kg2 {[%clk 0:00:33]}  Ra4 {[%clk 0:00:22]} 54. Re2 {[%clk 0:00:31]}  Rb4 {[%clk 0:00:22]} 55. Kf3 {[%clk 0:00:31]}  Rb3+ {[%clk 0:00:22]} 56. Re3 {[%clk 0:00:31]}  Rb4 {[%clk 0:00:21]} 57. h4 {[%clk 0:00:31]}  gxh4 {[%clk 0:00:21]} 58. gxh4 {[%clk 0:00:31]}  Ra4 {[%clk 0:00:22]} 59. Re7 {[%clk 0:00:28]}  Ra3+ {[%clk 0:00:17]} 60. Kf4 {[%clk 0:00:28]}  Ra4+ {[%clk 0:00:17]} 61. Re4 {[%clk 0:00:28]}  Ra1 {[%clk 0:00:16]} 62. Re7 {[%clk 0:00:22]}  Rf1+ {[%clk 0:00:16]} 63. Kg3 {[%clk 0:00:20]}  Rg1+ {[%clk 0:00:17]} 64. Kf3 {[%clk 0:00:19]}  Rf1+ {[%clk 0:00:16]} 65. Kg2 {[%clk 0:00:19]}  Rf8 {[%clk 0:00:12]} 66. g5+ {[%clk 0:00:17]}  Kh5 {[%clk 0:00:11]} 67. Kg3 {[%clk 0:00:18]}  Rh8 {[%clk 0:00:04]} 68. Rg7 {[%clk 0:00:16]} 1-0


[Site "https://www.chess.com"]

[Event "Titled Tuesday Blitz May 30 Early 2023"]
[White "WindWhistler11"]
[Black "Harriott, Tyrell"]
[BlackFideId "2086484"]
[WhiteElo "2543"]
[BlackElo "2107"]
[Result "1-0"]
[Round "07"]
[TimeControl "180+2"]
[Date "2023.05.30"]
[WhiteClock "0:00:02"]
[BlackClock "0:00:00"]

1. e4 {[%clk 0:03:00]}  d5 {[%clk 0:02:59]} 2. exd5 {[%clk 0:03:00]}  Nf6 {[%clk 0:03:00]} 3. d4 {[%clk 0:02:55]}  Qxd5 {[%clk 0:03:00]} 4. Nc3 {[%clk 0:02:52]}  Qa5 {[%clk 0:03:00]} 5. Bd2 {[%clk 0:02:50]}  c6 {[%clk 0:02:59]} 6. Nf3 {[%clk 0:02:48]}  Bg4 {[%clk 0:02:58]} 7. Bc4 {[%clk 0:02:45]}  e6 {[%clk 0:02:56]} 8. Nd5 {[%clk 0:02:41]}  Qd8 {[%clk 0:02:55]} 9. Ne3 {[%clk 0:02:39]}  Bh5 {[%clk 0:02:44]} 10. Qe2 {[%clk 0:02:32]}  Nbd7 {[%clk 0:02:39]} 11. O-O-O {[%clk 0:02:20]}  Be7 {[%clk 0:02:36]} 12. g4 {[%clk 0:02:11]}  Nxg4 {[%clk 0:02:29]} 13. Nxg4 {[%clk 0:01:40]}  Bxg4 {[%clk 0:02:30]} 14. Rhg1 {[%clk 0:01:40]}  Bh5 {[%clk 0:02:14]} 15. Qe3 {[%clk 0:01:05]}  Bg6 {[%clk 0:02:05]} 16. Bb3 {[%clk 0:00:54]}  Nf6 {[%clk 0:02:01]} 17. Ne5 {[%clk 0:00:52]}  Nd5 {[%clk 0:01:59]} 18. Qf3 {[%clk 0:00:47]}  Bf6 {[%clk 0:01:58]} 19. h4 {[%clk 0:00:43]}  Bxe5 {[%clk 0:01:53]} 20. dxe5 {[%clk 0:00:43]}  Qxh4 {[%clk 0:01:50]} 21. Bg5 {[%clk 0:00:40]}  Qe4 {[%clk 0:01:45]} 22. Qg3 {[%clk 0:00:36]}  Qf5 {[%clk 0:01:37]} 23. Rd4 {[%clk 0:00:26]}  a5 {[%clk 0:01:36]} 24. a4 {[%clk 0:00:25]}  b5 {[%clk 0:01:34]} 25. Bd2 {[%clk 0:00:18]}  c5 {[%clk 0:01:28]} 26. Rg4 {[%clk 0:00:10]}  O-O {[%clk 0:01:19]} 27. Rg5 {[%clk 0:00:09]}  Qe4 {[%clk 0:01:10]} 28. Rg4 {[%clk 0:00:09]}  Qf5 {[%clk 0:01:03]} 29. Rg5 {[%clk 0:00:08]}  Qe4 {[%clk 0:00:28]} 30. Re1 {[%clk 0:00:07]}  Qxe1+ {[%clk 0:00:18]} 31. Bxe1 {[%clk 0:00:07]}  c4 {[%clk 0:00:19]} 32. Ba2 {[%clk 0:00:07]}  Rfc8 {[%clk 0:00:17]} 33. axb5 {[%clk 0:00:06]}  Rab8 {[%clk 0:00:17]} 34. Bxa5 {[%clk 0:00:04]}  Ra8 {[%clk 0:00:16]} 35. Bc3 {[%clk 0:00:04]}  Rxa2 {[%clk 0:00:16]} 36. Kd2 {[%clk 0:00:04]}  Rd8 {[%clk 0:00:14]} 37. Ke2 {[%clk 0:00:03]}  Nxc3+ {[%clk 0:00:13]} 38. Qxc3 {[%clk 0:00:04]}  Ra1 {[%clk 0:00:12]} 39. Rg4 {[%clk 0:00:04]}  Rc1 {[%clk 0:00:12]} 40. Rxc4 {[%clk 0:00:03]}  Bxc2 {[%clk 0:00:00]} 41. Ke3 {[%clk 0:00:02]} 1-0


[Site "https://www.chess.com"]

[Event "Titled Tuesday Blitz May 30 Early 2023"]
[White "Shvedova, Alexandra"]
[Black "Szente Varga, Fruzsina"]
[WhiteFideId "54154782"]
[BlackFideId "712264"]
[WhiteElo "1973"]
[BlackElo "1994"]
[Result "0-1"]
[Round "07"]
[TimeControl "180+2"]
[Date "2023.05.30"]
[WhiteClock "0:00:00"]
[BlackClock "0:00:15"]

1. Nf3 {[%clk 0:03:00]}  d5 {[%clk 0:02:59]} 2. g3 {[%clk 0:03:00]}  Nf6 {[%clk 0:02:59]} 3. Bg2 {[%clk 0:03:00]}  g6 {[%clk 0:02:59]} 4. O-O {[%clk 0:03:01]}  Bg7 {[%clk 0:03:00]} 5. d4 {[%clk 0:02:59]}  O-O {[%clk 0:03:00]} 6. c3 {[%clk 0:03:00]}  c5 {[%clk 0:03:00]} 7. dxc5 {[%clk 0:02:54]}  Nc6 {[%clk 0:02:59]} 8. b4 {[%clk 0:02:53]}  Ne4 {[%clk 0:02:55]} 9. Qb3 {[%clk 0:02:44]}  Be6 {[%clk 0:02:46]} 10. Bb2 {[%clk 0:02:40]}  a5 {[%clk 0:02:38]} 11. a3 {[%clk 0:02:22]}  axb4 {[%clk 0:02:12]} 12. cxb4 {[%clk 0:02:19]}  d4 {[%clk 0:01:45]} 13. Qc2 {[%clk 0:02:17]}  Bf5 {[%clk 0:01:45]} 14. Qc1 {[%clk 0:02:09]}  e5 {[%clk 0:01:36]} 15. Rd1 {[%clk 0:02:06]}  Qe7 {[%clk 0:01:32]} 16. Nbd2 {[%clk 0:02:01]}  Bh6 {[%clk 0:00:56]} 17. Qc4 {[%clk 0:01:59]}  Nxd2 {[%clk 0:00:43]} 18. Nxd2 {[%clk 0:01:59]}  Rfd8 {[%clk 0:00:43]} 19. Ne4 {[%clk 0:01:55]}  Be6 {[%clk 0:00:39]} 20. Qc2 {[%clk 0:01:53]}  Bd5 {[%clk 0:00:39]} 21. Qd3 {[%clk 0:01:29]}  f5 {[%clk 0:00:38]} 22. Nd6 {[%clk 0:01:28]}  Bxg2 {[%clk 0:00:28]} 23. Kxg2 {[%clk 0:01:27]}  Bf8 {[%clk 0:00:26]} 24. Qb3+ {[%clk 0:01:20]}  Kg7 {[%clk 0:00:27]} 25. Nb5 {[%clk 0:01:12]}  h5 {[%clk 0:00:24]} 26. h4 {[%clk 0:01:10]}  f4 {[%clk 0:00:22]} 27. Rf1 {[%clk 0:00:50]}  Kh7 {[%clk 0:00:22]} 28. Rad1 {[%clk 0:00:48]}  Bh6 {[%clk 0:00:21]} 29. Nd6 {[%clk 0:00:45]}  Rf8 {[%clk 0:00:21]} 30. Ne4 {[%clk 0:00:43]}  Qd7 {[%clk 0:00:18]} 31. Qf3 {[%clk 0:00:34]}  Ne7 {[%clk 0:00:19]} 32. Ng5+ {[%clk 0:00:22]}  Bxg5 {[%clk 0:00:17]} 33. hxg5 {[%clk 0:00:23]}  Nf5 {[%clk 0:00:18]} 34. Rh1 {[%clk 0:00:19]}  fxg3 {[%clk 0:00:18]} 35. Qe4 {[%clk 0:00:09]}  gxf2 {[%clk 0:00:17]} 36. Rd3 {[%clk 0:00:07]}  Ne3+ {[%clk 0:00:17]} 37. Rxe3 {[%clk 0:00:07]}  dxe3 {[%clk 0:00:17]} 38. Qxe3 {[%clk 0:00:06]}  Qg4+ {[%clk 0:00:18]} 39. Kf1 {[%clk 0:00:06]}  Rad8 {[%clk 0:00:17]} 40. Qb3 {[%clk 0:00:04]}  Qxg5 {[%clk 0:00:16]} 41. e3 {[%clk 0:00:03]}  Qg4 {[%clk 0:00:15]} 42. Bxe5 {[%clk 0:00:00]}  Rd1+ {[%clk 0:00:15]} 0-1


[Site "https://www.chess.com"]

[Event "Titled Tuesday Blitz May 30 Early 2023"]
[White "Fajdetic, Hrvoje"]
[Black "Moral Garcia, Serafin"]
[WhiteFideId "14501945"]
[BlackFideId "2201925"]
[WhiteElo "2185"]
[BlackElo "2274"]
[Result "0-1"]
[Round "07"]
[TimeControl "180+2"]
[Date "2023.05.30"]
[WhiteClock "0:00:00"]
[BlackClock "0:00:16"]

1. d4 {[%clk 0:02:56]}  Nf6 {[%clk 0:02:58]} 2. Bf4 {[%clk 0:02:55]}  c5 {[%clk 0:02:57]} 3. e3 {[%clk 0:02:55]}  Qb6 {[%clk 0:02:54]} 4. Na3 {[%clk 0:02:55]}  d6 {[%clk 0:02:50]} 5. Nc4 {[%clk 0:02:53]}  Qc7 {[%clk 0:02:49]} 6. a4 {[%clk 0:02:50]}  Be6 {[%clk 0:02:46]} 7. Nd2 {[%clk 0:02:18]}  Nc6 {[%clk 0:02:42]} 8. c3 {[%clk 0:02:18]}  g6 {[%clk 0:02:40]} 9. h3 {[%clk 0:02:15]}  cxd4 {[%clk 0:02:39]} 10. exd4 {[%clk 0:02:15]}  Bg7 {[%clk 0:02:37]} 11. Ngf3 {[%clk 0:02:14]}  O-O {[%clk 0:02:31]} 12. Be2 {[%clk 0:02:12]}  Bd7 {[%clk 0:02:23]} 13. O-O {[%clk 0:02:11]}  e5 {[%clk 0:02:22]} 14. dxe5 {[%clk 0:02:10]}  dxe5 {[%clk 0:02:21]} 15. Bh2 {[%clk 0:02:11]}  Be6 {[%clk 0:02:17]} 16. Nc4 {[%clk 0:02:08]}  Rad8 {[%clk 0:02:03]} 17. Qc1 {[%clk 0:02:00]}  Nd7 {[%clk 0:02:01]} 18. Ng5 {[%clk 0:01:39]}  Bd5 {[%clk 0:01:53]} 19. Ne3 {[%clk 0:01:36]}  Nc5 {[%clk 0:01:47]} 20. Nxd5 {[%clk 0:01:25]}  Rxd5 {[%clk 0:01:46]} 21. Bc4 {[%clk 0:01:25]}  Rd7 {[%clk 0:01:41]} 22. b4 {[%clk 0:01:19]}  Nd3 {[%clk 0:01:34]} 23. Qe3 {[%clk 0:00:45]}  Nf4 {[%clk 0:01:30]} 24. b5 {[%clk 0:00:31]}  Na5 {[%clk 0:01:28]} 25. Ba2 {[%clk 0:00:28]}  b6 {[%clk 0:01:25]} 26. Rad1 {[%clk 0:00:16]}  Rfd8 {[%clk 0:01:16]} 27. Rxd7 {[%clk 0:00:12]}  Rxd7 {[%clk 0:01:15]} 28. Qe4 {[%clk 0:00:07]}  Bf6 {[%clk 0:00:39]} 29. Bxf4 {[%clk 0:00:05]}  exf4 {[%clk 0:00:36]} 30. Nxf7 {[%clk 0:00:06]}  Rxf7 {[%clk 0:00:34]} 31. Qe8+ {[%clk 0:00:06]}  Kg7 {[%clk 0:00:34]} 32. Bxf7 {[%clk 0:00:04]}  Qxf7 {[%clk 0:00:34]} 33. Qa8 {[%clk 0:00:04]}  Nc4 {[%clk 0:00:21]} 34. Rd1 {[%clk 0:00:04]}  Ne5 {[%clk 0:00:20]} 35. Qc8 {[%clk 0:00:04]}  f3 {[%clk 0:00:18]} 36. g3 {[%clk 0:00:03]}  Qe7 {[%clk 0:00:18]} 37. Qb8 {[%clk 0:00:03]}  Qc5 {[%clk 0:00:17]} 38. Rd8 {[%clk 0:00:02]}  Bxd8 {[%clk 0:00:17]} 39. Qxd8 {[%clk 0:00:02]}  Qxc3 {[%clk 0:00:17]} 40. Qc7+ {[%clk 0:00:00]}  Qxc7 {[%clk 0:00:16]} 0-1


[Site "https://www.chess.com"]

[Event "Titled Tuesday Blitz May 30 Early 2023"]
[White "hakanazeri2"]
[Black "Sovetbekova, Nurai"]
[BlackFideId "13801910"]
[WhiteElo "2525"]
[BlackElo "1857"]
[Result "0-1"]
[Round "07"]
[TimeControl "180+2"]
[Date "2023.05.30"]
[WhiteClock "0:00:00"]
[BlackClock "0:00:01"]

1. e4 {[%clk 0:02:55]}  c5 {[%clk 0:02:59]} 2. Nf3 {[%clk 0:02:56]}  Nc6 {[%clk 0:02:59]} 3. d4 {[%clk 0:02:54]}  cxd4 {[%clk 0:03:00]} 4. Nxd4 {[%clk 0:02:54]}  Nf6 {[%clk 0:03:00]} 5. Nc3 {[%clk 0:02:55]}  e5 {[%clk 0:02:59]} 6. Ndb5 {[%clk 0:02:54]}  d6 {[%clk 0:02:58]} 7. Bg5 {[%clk 0:02:53]}  a6 {[%clk 0:02:56]} 8. Na3 {[%clk 0:02:47]}  b5 {[%clk 0:02:55]} 9. Nd5 {[%clk 0:02:45]}  Be7 {[%clk 0:02:55]} 10. Bxf6 {[%clk 0:02:41]}  Bxf6 {[%clk 0:02:55]} 11. c3 {[%clk 0:02:42]}  Rb8 {[%clk 0:02:47]} 12. Nc2 {[%clk 0:02:42]}  Bg5 {[%clk 0:02:42]} 13. a4 {[%clk 0:02:34]}  bxa4 {[%clk 0:02:33]} 14. Ncb4 {[%clk 0:02:31]}  Nxb4 {[%clk 0:02:27]} 15. cxb4 {[%clk 0:02:32]}  O-O {[%clk 0:02:25]} 16. Rxa4 {[%clk 0:02:26]}  f5 {[%clk 0:02:21]} 17. exf5 {[%clk 0:02:08]}  Bxf5 {[%clk 0:02:16]} 18. Bc4 {[%clk 0:02:05]}  Kh8 {[%clk 0:02:08]} 19. Rxa6 {[%clk 0:01:53]}  Be4 {[%clk 0:01:56]} 20. O-O {[%clk 0:01:42]}  Bxd5 {[%clk 0:01:54]} 21. Qxd5 {[%clk 0:01:40]}  Rxb4 {[%clk 0:01:55]} 22. b3 {[%clk 0:01:36]}  Rb6 {[%clk 0:01:50]} 23. Ra7 {[%clk 0:01:32]}  Qf6 {[%clk 0:01:40]} 24. g3 {[%clk 0:01:27]}  Rbb8 {[%clk 0:01:28]} 25. h4 {[%clk 0:00:55]}  Bh6 {[%clk 0:01:23]} 26. Kg2 {[%clk 0:00:49]}  Rbe8 {[%clk 0:01:19]} 27. Rd7 {[%clk 0:00:39]}  e4 {[%clk 0:01:15]} 28. Rxd6 {[%clk 0:00:36]}  Qf3+ {[%clk 0:01:15]} 29. Kg1 {[%clk 0:00:36]}  Be3 {[%clk 0:00:41]} 30. fxe3 {[%clk 0:00:25]}  Qxg3+ {[%clk 0:00:40]} 31. Kh1 {[%clk 0:00:26]}  Qxh4+ {[%clk 0:00:25]} 32. Kg2 {[%clk 0:00:24]}  Qg4+ {[%clk 0:00:25]} 33. Kh2 {[%clk 0:00:25]}  Rf3 {[%clk 0:00:11]} 34. Rxf3 {[%clk 0:00:06]}  exf3 {[%clk 0:00:11]} 35. Qd2 {[%clk 0:00:06]}  Qh4+ {[%clk 0:00:09]} 36. Kg1 {[%clk 0:00:07]}  Qg3+ {[%clk 0:00:09]} 37. Kf1 {[%clk 0:00:06]}  f2 {[%clk 0:00:05]} 38. Qxf2 {[%clk 0:00:01]}  Qxd6 {[%clk 0:00:05]} 39. Ke2 {[%clk 0:00:01]}  Rf8 {[%clk 0:00:03]} 40. Qg2 {[%clk 0:00:00]}  Qa3 {[%clk 0:00:01]} 0-1


[Site "https://www.chess.com"]

[Event "Titled Tuesday Blitz May 30 Early 2023"]
[White "Coelho, Ramyres Santana"]
[Black "Garakov, Mikhael"]
[WhiteFideId "2120690"]
[BlackFideId "4169034"]
[WhiteElo "1888"]
[BlackElo "2347"]
[Result "0-1"]
[Round "07"]
[TimeControl "180+2"]
[Date "2023.05.30"]
[WhiteClock "0:00:06"]
[BlackClock "0:00:05"]

1. e4 {[%clk 0:02:59]}  c5 {[%clk 0:02:59]} 2. Nf3 {[%clk 0:02:59]}  e6 {[%clk 0:02:59]} 3. d4 {[%clk 0:02:59]}  cxd4 {[%clk 0:02:59]} 4. c3 {[%clk 0:02:59]}  d3 {[%clk 0:02:55]} 5. Bxd3 {[%clk 0:02:59]}  Nc6 {[%clk 0:02:54]} 6. O-O {[%clk 0:03:00]}  d6 {[%clk 0:02:50]} 7. Qe2 {[%clk 0:02:59]}  Nf6 {[%clk 0:02:47]} 8. Rd1 {[%clk 0:02:58]}  Qc7 {[%clk 0:02:47]} 9. Bg5 {[%clk 0:02:55]}  Be7 {[%clk 0:02:46]} 10. Na3 {[%clk 0:02:53]}  a6 {[%clk 0:02:46]} 11. Nc4 {[%clk 0:02:52]}  b5 {[%clk 0:02:38]} 12. Ncd2 {[%clk 0:02:50]}  h6 {[%clk 0:02:15]} 13. Bh4 {[%clk 0:02:47]}  Bd7 {[%clk 0:01:18]} 14. Rac1 {[%clk 0:02:43]}  O-O {[%clk 0:01:17]} 15. Nf1 {[%clk 0:02:36]}  Qb7 {[%clk 0:01:13]} 16. h3 {[%clk 0:02:34]}  Rac8 {[%clk 0:01:07]} 17. Bb1 {[%clk 0:02:34]}  Rfe8 {[%clk 0:00:58]} 18. Bxf6 {[%clk 0:02:33]}  Bxf6 {[%clk 0:00:41]} 19. Rxd6 {[%clk 0:02:33]}  Ne5 {[%clk 0:00:41]} 20. Nxe5 {[%clk 0:02:28]}  Bxe5 {[%clk 0:00:41]} 21. Rd3 {[%clk 0:02:27]}  b4 {[%clk 0:00:41]} 22. Rcd1 {[%clk 0:02:26]}  Bb5 {[%clk 0:00:41]} 23. Ne3 {[%clk 0:02:12]}  bxc3 {[%clk 0:00:38]} 24. bxc3 {[%clk 0:02:10]}  Rxc3 {[%clk 0:00:34]} 25. Ng4 {[%clk 0:02:01]}  Bxd3 {[%clk 0:00:27]} 26. Bxd3 {[%clk 0:02:01]}  Bd4 {[%clk 0:00:20]} 27. Bxa6 {[%clk 0:01:59]}  Qb6 {[%clk 0:00:21]} 28. Bb5 {[%clk 0:01:56]}  Rb8 {[%clk 0:00:19]} 29. a4 {[%clk 0:01:56]}  h5 {[%clk 0:00:18]} 30. Nh2 {[%clk 0:01:52]}  Rbc8 {[%clk 0:00:13]} 31. Nf3 {[%clk 0:01:52]}  Rc2 {[%clk 0:00:12]} 32. Rd2 {[%clk 0:01:45]}  Rc1+ {[%clk 0:00:10]} 33. Kh2 {[%clk 0:01:44]}  Qc7+ {[%clk 0:00:09]} 34. g3 {[%clk 0:01:44]}  Be5 {[%clk 0:00:08]} 35. Rd7 {[%clk 0:01:40]}  Qc5 {[%clk 0:00:08]} 36. Qd2 {[%clk 0:01:31]}  Rc2 {[%clk 0:00:08]} 37. Rd8+ {[%clk 0:01:28]}  Rxd8 {[%clk 0:00:07]} 38. Qxd8+ {[%clk 0:01:29]}  Kh7 {[%clk 0:00:07]} 39. Ng5+ {[%clk 0:01:26]}  Kg6 {[%clk 0:00:06]} 40. Kh1 {[%clk 0:00:17]}  Qxf2 {[%clk 0:00:06]} 41. Be2 {[%clk 0:00:09]}  Rxe2 {[%clk 0:00:05]} 42. Qf6+ {[%clk 0:00:06]}  gxf6 {[%clk 0:00:05]} 43. Nf3 {[%clk 0:00:07]}  Qxf3+ {[%clk 0:00:05]} 44. Kg1 {[%clk 0:00:06]}  Qg2# {[%clk 0:00:05]} 0-1


[Site "https://www.chess.com"]

[Event "Titled Tuesday Blitz May 30 Early 2023"]
[White "Samaganova, Aleksandra"]
[Black "Samunenkov, Ihor"]
[WhiteFideId "13800221"]
[BlackFideId "14187086"]
[WhiteElo "1858"]
[BlackElo "2457"]
[Result "0-1"]
[Round "07"]
[TimeControl "180+2"]
[Date "2023.05.30"]
[WhiteClock "0:00:05"]
[BlackClock "0:00:47"]

1. c4 {[%clk 0:03:00]}  c5 {[%clk 0:02:58]} 2. Nf3 {[%clk 0:02:56]}  Nf6 {[%clk 0:02:57]} 3. e3 {[%clk 0:02:56]}  Nc6 {[%clk 0:02:56]} 4. Nc3 {[%clk 0:02:55]}  e5 {[%clk 0:02:55]} 5. Be2 {[%clk 0:02:47]}  d5 {[%clk 0:02:52]} 6. cxd5 {[%clk 0:02:46]}  Nxd5 {[%clk 0:02:52]} 7. O-O {[%clk 0:02:46]}  Be7 {[%clk 0:02:51]} 8. d4 {[%clk 0:02:44]}  exd4 {[%clk 0:02:45]} 9. exd4 {[%clk 0:02:36]}  O-O {[%clk 0:02:38]} 10. h3 {[%clk 0:02:28]}  Bf6 {[%clk 0:02:31]} 11. Nxd5 {[%clk 0:02:24]}  Qxd5 {[%clk 0:02:31]} 12. dxc5 {[%clk 0:02:24]}  Qxc5 {[%clk 0:02:32]} 13. Qa4 {[%clk 0:02:08]}  Re8 {[%clk 0:02:16]} 14. Be3 {[%clk 0:01:46]}  Rxe3 {[%clk 0:02:10]} 15. fxe3 {[%clk 0:01:46]}  Qxe3+ {[%clk 0:02:10]} 16. Rf2 {[%clk 0:01:46]}  Nd4 {[%clk 0:01:35]} 17. Bc4 {[%clk 0:01:01]}  Nxf3+ {[%clk 0:01:27]} 18. gxf3 {[%clk 0:01:02]}  Bxh3 {[%clk 0:01:17]} 19. Qb3 {[%clk 0:00:54]}  Qxb3 {[%clk 0:01:09]} 20. Bxb3 {[%clk 0:00:50]}  Bd4 {[%clk 0:01:09]} 21. Rd1 {[%clk 0:00:46]}  Bxf2+ {[%clk 0:01:08]} 22. Kxf2 {[%clk 0:00:47]}  Kf8 {[%clk 0:01:05]} 23. Rc1 {[%clk 0:00:41]}  Rc8 {[%clk 0:01:04]} 24. Rh1 {[%clk 0:00:38]}  Bf5 {[%clk 0:01:04]} 25. Ke3 {[%clk 0:00:37]}  Ke7 {[%clk 0:01:02]} 26. Kf4 {[%clk 0:00:35]}  Kf6 {[%clk 0:01:01]} 27. Rd1 {[%clk 0:00:25]}  g5+ {[%clk 0:01:00]} 28. Kg3 {[%clk 0:00:25]}  h5 {[%clk 0:00:59]} 29. Rd6+ {[%clk 0:00:23]}  Ke7 {[%clk 0:00:59]} 30. Rd5 {[%clk 0:00:20]}  h4+ {[%clk 0:00:57]} 31. Kf2 {[%clk 0:00:19]}  Kf6 {[%clk 0:00:54]} 32. Rd6+ {[%clk 0:00:19]}  Be6 {[%clk 0:00:53]} 33. Ke3 {[%clk 0:00:13]}  Ke5 {[%clk 0:00:52]} 34. Rd4 {[%clk 0:00:11]}  Bxb3 {[%clk 0:00:49]} 35. axb3 {[%clk 0:00:12]}  h3 {[%clk 0:00:49]} 36. Re4+ {[%clk 0:00:11]}  Kf5 {[%clk 0:00:50]} 37. Kf2 {[%clk 0:00:07]}  Rc2+ {[%clk 0:00:49]} 38. Kg3 {[%clk 0:00:08]}  h2 {[%clk 0:00:49]} 39. Re1 {[%clk 0:00:08]}  Rxb2 {[%clk 0:00:49]} 40. Rc1 {[%clk 0:00:05]}  a5 {[%clk 0:00:47]} 0-1


[Site "https://www.chess.com"]

[Event "Titled Tuesday Blitz May 30 Early 2023"]
[White "Romkachess"]
[Black "Fernandez Garcia, Gumersindo"]
[BlackFideId "24516740"]
[WhiteElo "2555"]
[BlackElo "2093"]
[Result "0-1"]
[Round "07"]
[TimeControl "180+2"]
[Date "2023.05.30"]
[WhiteClock "0:00:02"]
[BlackClock "0:00:04"]

1. e4 {[%clk 0:03:00]}  c5 {[%clk 0:02:59]} 2. Nf3 {[%clk 0:02:59]}  g6 {[%clk 0:02:58]} 3. h4 {[%clk 0:02:52]}  h6 {[%clk 0:02:57]} 4. d4 {[%clk 0:02:52]}  cxd4 {[%clk 0:02:57]} 5. Qxd4 {[%clk 0:02:52]}  Nf6 {[%clk 0:02:57]} 6. e5 {[%clk 0:02:52]}  Nc6 {[%clk 0:02:57]} 7. Qa4 {[%clk 0:02:50]}  Nd5 {[%clk 0:02:58]} 8. Qb3 {[%clk 0:02:51]}  Nc7 {[%clk 0:02:57]} 9. Bc4 {[%clk 0:02:50]}  Ne6 {[%clk 0:02:52]} 10. Bxe6 {[%clk 0:02:43]}  dxe6 {[%clk 0:02:52]} 11. Nc3 {[%clk 0:02:39]}  Bg7 {[%clk 0:02:51]} 12. Bf4 {[%clk 0:02:37]}  O-O {[%clk 0:02:50]} 13. O-O {[%clk 0:02:37]}  Qc7 {[%clk 0:02:46]} 14. Rae1 {[%clk 0:02:36]}  a6 {[%clk 0:02:45]} 15. Ne4 {[%clk 0:02:34]}  b5 {[%clk 0:02:40]} 16. Qe3 {[%clk 0:02:34]}  Kh7 {[%clk 0:02:40]} 17. c3 {[%clk 0:02:27]}  Bb7 {[%clk 0:02:39]} 18. Nc5 {[%clk 0:02:27]}  Rad8 {[%clk 0:02:30]} 19. Rd1 {[%clk 0:02:28]}  Na5 {[%clk 0:02:20]} 20. Nxb7 {[%clk 0:02:23]}  Qxb7 {[%clk 0:02:18]} 21. b3 {[%clk 0:02:15]}  Rd5 {[%clk 0:02:08]} 22. Rd4 {[%clk 0:02:11]}  Rfd8 {[%clk 0:02:06]} 23. Rfd1 {[%clk 0:02:12]}  Nc6 {[%clk 0:01:54]} 24. Rxd5 {[%clk 0:02:09]}  Rxd5 {[%clk 0:01:48]} 25. Rxd5 {[%clk 0:02:08]}  exd5 {[%clk 0:01:49]} 26. e6 {[%clk 0:02:09]}  f5 {[%clk 0:01:43]} 27. Qd3 {[%clk 0:01:40]}  Nd8 {[%clk 0:01:37]} 28. h5 {[%clk 0:01:38]}  Bf6 {[%clk 0:01:22]} 29. hxg6+ {[%clk 0:01:32]}  Kxg6 {[%clk 0:01:22]} 30. Nd4 {[%clk 0:01:16]}  Bxd4 {[%clk 0:01:18]} 31. Qg3+ {[%clk 0:01:15]}  Kh7 {[%clk 0:01:00]} 32. cxd4 {[%clk 0:01:12]}  Qc6 {[%clk 0:00:59]} 33. Bc7 {[%clk 0:00:55]}  Nxe6 {[%clk 0:00:57]} 34. Be5 {[%clk 0:00:56]}  Qe8 {[%clk 0:00:50]} 35. Qf3 {[%clk 0:00:53]}  Qf7 {[%clk 0:00:46]} 36. Qxd5 {[%clk 0:00:51]}  Ng5 {[%clk 0:00:46]} 37. Qa8 {[%clk 0:00:50]}  Qe6 {[%clk 0:00:34]} 38. Qf8 {[%clk 0:00:27]}  Qf7 {[%clk 0:00:30]} 39. Qa8 {[%clk 0:00:21]}  Qe6 {[%clk 0:00:27]} 40. Qh8+ {[%clk 0:00:21]}  Kg6 {[%clk 0:00:27]} 41. Qg7+ {[%clk 0:00:22]}  Kh5 {[%clk 0:00:28]} 42. f3 {[%clk 0:00:21]}  Nf7 {[%clk 0:00:22]} 43. Kh2 {[%clk 0:00:16]}  Nxe5 {[%clk 0:00:19]} 44. dxe5 {[%clk 0:00:17]}  f4 {[%clk 0:00:13]} 45. Qh8 {[%clk 0:00:11]}  Qg6 {[%clk 0:00:10]} 46. Kh1 {[%clk 0:00:05]}  Kh4 {[%clk 0:00:07]} 47. Qf8 {[%clk 0:00:02]}  Kg3 {[%clk 0:00:04]} 48. Qxe7 {[%clk 0:00:02]}  Qb1# {[%clk 0:00:04]} 0-1


[Site "https://www.chess.com"]